Cogmind - Beta 9.6 @@@ ROGUE MODE // 2020.06.09 @ 13:02:51 Player: homogoblin Result: Destroyed by G-34 Mercenary with Small Laser Performance ------------- Evolutions (1) 500 Regions Visited (2) 400 Robots Destroyed (22) 110 Value Destroyed (804) 804 Prototype IDs (1) 20 Alien Tech Used (0) 0 Bonus (19) 19 TOTAL SCORE: 1853 Bonus ------- High Alert Combat Kills 19 Cogmind --------- Core Integrity 0/400 Matter 293/300 Energy 100/100 System Corruption 3% Temperature Cool (6) Movement Core (100) Ox1 Location -9/Materials Parts ------- > --- POWER (1) -------- (None) > --- PROPULSION (3) --- (None) > --- UTILITY (3) ------ Small Storage Unit Signal Interpreter > --- WEAPON (2) ------- (None) > --- INVENTORY (6) ---- Light Treads Light Treads Peak State ------------ > --- POWER ------------ Ion Engine > --- PROPULSION ------- Light Treads Light Treads > --- UTILITY ---------- Small Storage Unit Signal Interpreter > --- WEAPON ----------- Light Assault Rifle Light Assault Rifle > --- INVENTORY -------- (None) [Rating: 7] Favorites ----------- Power Ion Engine Engine Ion Engine Propulsion Light Treads Treads Light Treads Utility Small Storage Unit Storage Small Storage Unit Processor Signal Interpreter Weapon Beam Cannon Energy Gun Improved EM Shotgun Energy Cannon Beam Cannon Ballistic Gun Light Assault Rifle Launcher Grenade Launcher Build | -11 -10 -9 ------- Run | Scr Mat Mat Slots Evolved 2 | . . 2 Power . | . . . Propulsion 1 | . . 1 Utility 1 | . . 1 Weapon . | . . . Parts Attached 13 | 6 2 5 Power 1 | 1 . . Engine 1 | 1 . . Core . | . . . Reactor . | . . . Propulsion 3 | 2 . 1 Treads 3 | 2 . 1 Leg . | . . . Wheel . | . . . Hover . | . . . Flight . | . . . Utility 2 | 1 1 . Device . | . . . Storage 1 | 1 . . Processor 1 | . 1 . Hackware . | . . . Protection . | . . . Artifact . | . . . Weapon 7 | 2 1 4 Energy Gun 1 | . . 1 Energy Cannon 2 | . . 2 Ballistic Gun 3 | 2 . 1 Ballistic Cannon . | . . . Launcher 1 | . 1 . Special Weapon . | . . . Impact Weapon . | . . . Slashing Weapon . | . . . Piercing Weapon . | . . . Special Melee Weapon . | . . . Unidentified Prototypes 1 | . . 1 Parts Lost 7 | . . 7 Power 1 | . . 1 Propulsion 1 | . . 1 Utility . | . . . Weapon 5 | . . 5 Highest Loss Streak 5 | . . 5 Average Slot Usage (%) 68 | . 99 58 Engine 10 | . 14 9 Treads 16 | . 28 12 Storage 11 | . 14 11 Processor 11 | . 13 11 Energy Cannon 6 | . . 8 Ballistic Gun 5 | . 14 2 Launcher 5 | . 13 3 Naked Turns . | . . . Heaviest Build 15 | 11 13 15 Greatest Support 40 | 40 40 20 Greatest Overweight (x) 2 | . . 2 Average Overweight (x) . | . . . Largest Inventory Capacity 6 | 6 6 6 Average Capacity 5 | 4 6 6 Most Carried 4 | 4 3 4 Average Carried 2 | . 2 3 Final Capacity 6 | 6 6 6 Final Carried 3 | . 3 2 Class Distribution -------------------- 100% | Mutant Dominant Class ---------------- Mutant | -10/Materials Mutant | -9/Materials Resources | -11 -10 -9 ----------- Run | Scr Mat Mat Matter Collected 393 | 179 64 150 Remotely . | . . . Salvage Created 617 | . 139 478 Parts 35 | . 12 23 Haulers Intercepted . | . . . Recyclers Shooed . | . . . Parts Field Recycled . | . . . Retrieved Matter . | . . . Parts Self-Destructed . | . . . Prevented . | . . . Kills | -11 -10 -9 ------- Run | Scr Mat Mat Combat Hostiles Destroyed 21 | . 11 10 Guns 1 | . 1 . Cannons 8 | . . 8 AOE 12 | . 10 2 Classes Destroyed 4 | . 2 2 Watcher 1 | . 1 . Grunt 17 | . 11 6 Brawler 1 | . . 1 Sentry 3 | . . 3 Best Kill Streak 12 | . 12 5 Combat Bots Only 11 | . 11 5 Max Kills in Single Turn 3 | . 3 2 Gunslinging . | . . . Exploded 3 | . 3 2 Melee . | . . . Uniques/NPCs Destroyed . | . . . Combat | -11 -10 -9 -------- Run | Scr Mat Mat Damage Taken 1353 | . 225 1128 Core 443 | . 35 408 Absorbed by Shields . | . . . Core Remaining (%) 93 | 100 86 . Volleys Fired 60 | . 9 51 Largest 2 | . 1 2 Hottest 120 | . 30 120 Shots Fired 70 | . 9 61 Gun 15 | . 2 13 Cannon 47 | . . 47 Launcher 8 | . 7 1 Special . | . . . Kinetic 15 | . 2 13 Thermal 47 | . . 47 Explosive 8 | . 7 1 Electromagnetic . | . . . Robot Hit Streak 8 | . 7 8 Robot Miss Streak 2 | . . 2 Penetration Max . | . . . Secondary Targets . | . . . Shots Hit Robots 44 | . 7 37 Core Hits 38 | . 21 17 Critical Hits . | . . . Critical Kills . | . . . Critical Parts Destroyed . | . . . Melee Attacks . | . . . Impact . | . . . Slashing . | . . . Piercing . | . . . Sneak Attacks . | . . . Combat Hostiles . | . . . Follow-up Attacks . | . . . Damage Inflicted 1841 | . 1088 753 Guns 97 | . 20 77 Cannons 566 | . . 566 Explosions 1178 | . 1068 110 Melee . | . . . Ramming . | . . . Kinetic 97 | . 20 77 Thermal 566 | . . 566 Explosive 1178 | . 1068 110 Electromagnetic . | . . . Impact . | . . . Slashing . | . . . Piercing . | . . . Highest Corruption 3 | . . 3 Average Corruption 3 | . . 3 Corruption Purged . | . . . Effects 1 | . . 1 Data Loss (minor) 1 | . . 1 Overload Shots . | . . . Overflow Damage 26 | . 26 . Projectiles . | . . . Explosions 26 | . 26 . Melee . | . . . Knockbacks . | . . . Impact . | . . . Kinetic . | . . . Secondary . | . . . Self-Inflicted Damage . | . . . Shots . | . . . Rammed . | . . . Targets Rammed . | . . . Kicked . | . . . Crushed . | . . . Highest Temperature 421 | . 46 421 Average Temperature 131 | . 27 142 Received Heat Transfer 600 | . 129 471 Effects 3 | . . 3 Shutdowns 2 | . . 2 Interference 1 | . . 1 Siege Activations . | . . . Robots Corrupted . | . . . Combat Hostiles . | . . . Parts Fried . | . . . Impact Corruptions . | . . . Robots Melted . | . . . Combat Hostiles . | . . . Parts Melted 1 | . . 1 Heat Transferred 1184 | . . 1184 Parts Sabotaged . | . . . Parts Stolen . | . . . Parts Stripped . | . . . Power Chain Reactions . | . . . Missiles Intercepted . | . . . Alert | -11 -10 -9 ------- Run | Scr Mat Mat Peak Influence 429 | . 272 429 Average Influence 178 | . 82 242 Maximum Alert Level 2 | . 1 2 Low Security (%) 49 | 100 74 32 Level 1 46 | . 25 61 Level 2 3 | . . 5 Level 3 . | . . . Level 4 . | . . . Level 5 . | . . . High Security . | . . . Max Security . | . . . Squads Dispatched 4 | . 2 2 Investigation 2 | . 1 1 Extermination . | . . . Reinforcement 2 | . 1 1 Assault . | . . . Garrison . | . . . Intercept . | . . . Construction Impeded . | . . . Haulers Reinforced . | . . . Stealth | -11 -10 -9 --------- Run | Scr Mat Mat Distress Signals 2 | . . 2 Communications Jammed . | . . . Distress Signals . | . . . Times Spotted 34 | . 12 22 Peak Tracking Total 10 | . 10 7 Tactical Retreats . | . . . Traps | -11 -10 -9 ------- Run | Scr Mat Mat Traps Triggered 1 | . 1 . Indirectly . | . . . Trap Hack Attempts . | . . . Triggered . | . . . Disarmed . | . . . Reprogrammed . | . . . Reused . | . . . Traps Extracted . | . . . Installed . | . . . Triggered . | . . . Machines | -11 -10 -9 ---------- Run | Scr Mat Mat Machines Disabled . | . . . Max in Single Turn . | . . . Machines Sabotaged . | . . . Garrisons Compromised . | . . . Overloaded Fab Kills . | . . . Fab Network Shutdowns . | . . . Hacking | -11 -10 -9 --------- Run | Scr Mat Mat Machines Accessed 2 | . 1 1 Terminals 2 | . 1 1 Fabricators . | . . . Repair Stations . | . . . Recycling Units . | . . . Scanalyzers . | . . . Garrison Access . | . . . Total Hacks 3 | . 1 2 Successful 1 | . 1 . Failed 2 | . . 2 Catastrophic 2 | . . 2 Database Lockouts . | . . . Manual . | . . . Terminals 3 | . 1 2 Fabricators . | . . . Repair Stations . | . . . Recycling Units . | . . . Scanalyzers . | . . . Garrison Access . | . . . Terminal Hacks 1 | . 1 . Zone Layout 1 | . 1 . Fabricator Hacks . | . . . Repair Station Hacks . | . . . Recycling Unit Hacks . | . . . Scanalyzer . | . . . Garrison Access Hacks . | . . . Unauthorized Hacks . | . . . Terminals . | . . . Fabricators . | . . . Repair Stations . | . . . Recycling Units . | . . . Scanalyzers . | . . . Garrison Access . | . . . Data Cores Recovered . | . . . Used . | . . . Hacking Detections 1 | . . 1 Full Trace Events 1 | . . 1 Feedback Events . | . . . Feedback Blocked . | . . . Robot Schematics Acquired . | . . . Robots Built . | . . . Matter . | . . . Time . | . . . Total Robot Build Rating . | . . . Part Schematics Acquired . | . . . Parts Built . | . . . Matter . | . . . Time . | . . . Total Part Build Rating . | . . . Parts Repaired . | . . . Time . | . . . Parts Recycled . | . . . Recycled Matter . | . . . Retrieved Matter . | . . . Retrieved Components . | . . . Parts Scanalyzed . | . . . Part Schematics Acquired . | . . . Parts Damaged . | . . . Bothacking | -11 -10 -9 ------------ Run | Scr Mat Mat Used RIF Installer . | . . . Robots Hacked . | . . . Non-combat . | . . . Combat . | . . . Robot Hacks Applied . | . . . Relay Couplers Released . | . . . Robots Rewired . | . . . Allies Hacked . | . . . Hacks Repelled . | . . . Allies | -11 -10 -9 -------- Run | Scr Mat Mat Total Allies . | . . . Largest Group . | . . . Highest-Rated Group . | . . . Highest-Rated Ally . | . . . Total Orders . | . . . Ally Attacks . | . . . Total Damage . | . . . Kills . | . . . Allies Corrupted . | . . . Allies Melted . | . . . Intel | -11 -10 -9 ------- Run | Scr Mat Mat Robot Analysis Total . | . . . Derelict Logs Recovered . | . . . Drone Launches . | . . . Drone Recoveries . | . . . Exploration | -11 -10 -9 ------------- Run | Scr Mat Mat Turns Passed 710 | 81 162 467 Spaces Moved 350 | 46 87 217 Core 33 | 3 . 30 Treads 317 | 43 87 187 Legs . | . . . Wheels . | . . . Hover . | . . . Flight . | . . . Fastest Speed 50 | 50 160 100 Average Speed 157 | 152 160 156 Slowest Speed 160 | 160 160 160 Overloaded Moves . | . . . Propulsion Burnouts . | . . . Robots Hopped . | . . . Cave-ins Triggered . | . . . Exploration Rate (%) 21 | 4 25 34 Regions Visited 2 Branch Regions . Pre-discovered Areas . | . . . Known Exits Taken 1 | . 1 . Unknown Exits Taken 1 | 1 . . Scrap Searched . | . . . Spaces Dug . | . . . Terrain Destroyed 30 | . 24 6 Melee . | . . . Projectile . | . . . AOE 30 | . 24 6 Actions | -11 -10 -9 --------- Run | Scr Mat Mat Total 445 | 57 101 287 Wait 7 | . . 7 Move 348 | 45 86 217 Hop . | . . . Pick Up 14 | 6 4 4 Fast Attach . | . . . Attach 12 | 6 1 5 Detach . | . . . Swap 1 | . 1 . Drop 3 | . . 3 Fire 60 | . 9 51 Melee . | . . . Ram . | . . . Kick . | . . . Crush . | . . . Escape Stasis . | . . . Rewire . | . . . Trap . | . . . Miscellaneous . | . . . Route ------- -11/Scrapyard -10/Materials -9/Materials History --------- Turn | Location | Event 20 | -11/Scrapyard | Discovered new exit (range 16) 82 | -11/Scrapyard | Entered Materials 117 | -10/Materials | Discovered new exit (range 13) 228 | -10/Materials | Destroyed 11 combat bots 243 | -10/Materials | Identified exit to Materials 244 | -10/Materials | Entered another Materials area 244 | -9/Materials | Evolved 2 slots: Propulsion x1, Utility x1 328 | -9/Materials | Build established: Mutant 656 | -9/Materials | Core integrity fell below 50% 695 | -9/Materials | Lost 5 parts (1p1n3w) 706 | -9/Materials | Core integrity fell below 20% 711 | -9/Materials | Destroyed by G-34 Mercenary with Small Laser Last Messages --------------- U-05 Engineer lays Concrete. K-01 Serf collects debris. Beam Cannon destroyed. Power failure, Ion Engine shutdown. Acquired 10 matter. Acquired 1 matter. K-01 Serf collects debris. Ion Engine destroyed. K-01 Serf collects debris. G-34 Mercenary destroyed. Lgt. Treads destroyed. Acquired Prototype Energy Gun. Lgt. Assault Rifle destroyed. Identified Imp. EM Shotgun. Malfunction: System corrupted (+3). System corrupted: Component data lost. Faulty Imp. EM Shotgun destroyed. Connecting with Terminal... ALERT: Suspicious activity at Terminal M011. Dispatching Investigation squad. Map ----- +----------------------------------------------------+ | ?????????????????????????????????????????????????? | | ?????????????????????????????????? ????????????? | | ?????????????????????????????????# #???????????? | | ?????????????????????????????????# #???????????? | | ?????????????????????????????????# #??????????? | | ?????????????????????????????????# #???#+?????? | | ?????????????????????????????????# #???# ?????? | | ?????????????????????????????????# #???# ????# | | ?????????????????????????????????# #???# #???# | | ?????????????????????????????????# #???# ##### | | ?????????????????????????????????# #???# | | ?????????????????????????????????# #???# | | ?????????????????????????###+###?# #???# ### | | ?????????????????? ?????? ?# #???# #?? | | ????????????????# ???? """ # ##### ### | | ????????????????? ???# """ # | | ????????????????? ???# """ + ### | | ??????????????#### ???# # ########+##?? | | ??????????????? ???# """ # #??????# ?? | | ????????????????# #??# """ ?# #??????# | | ?????????######?# #??# """ ?# #??????# """ | | ????????? = ?# ##???? ??# #??????# """ | | ????????? # #########??# #??????#! """ | | ???????? * # """ ###???# #??????# | | ????????? + "T" ""#???# #??????###### | | ????????????????# s @ T"#???# ########????? | | ????????????????# s s ""#???# # #????? | | ????????????????# s ###???# # #????? | | ????????????????# # ????# # #????? | | ????????????????# # ???# # """ #????? | | ????????????????# # !???# + """ ###### | | ????????????????# g### # !!??# # """ + | | ????????????????### ##?# # != ?# ############# | | ??????????????????# #??# + # # #??? | | ??????????????????# #??# # * #== # #??? | | ??????????????????# #??# # +%= # """ #??? | | ??????????????????# #??# # "" #*[ # """"" #??? | | ??????????????????# #??# # ????# + """"" #??? | | ??????????????????# #??# #?????# # """"" #??? | | ????????????#######/#### #?????# # """ #??? | | ????????????# ## ##????#= # #??? | | ????????????#! # ######%= # #??? | | ????????????# # ##########??? | | ????????????# + ! #???????????? | | ????????????# """ """ # =%[ #???????????? | | ????????????# """ """ # ###### #???????????? | | ????????????# """ """ ###/###????# #???????????? | | ????????????# # ?????# #???????????? | | ?????????????########## ????# #???????????? | | ??????????????????????# T???# #???????????? | +----------------------------------------------------+ Best States ------------- Heat Dissipation 28 Energy Generation 10 Energy Capacity 250 Matter Stores 299 Matter Capacity 300 Sight Range 16 Terrain Scan Density 10 Evasion (%) 40 Recoil Reduction 2 Item Schematics ----------------- None Robot Schematics ------------------ None Fabricated ------------ Nothing Alien Tech Used ----------------- None Achievements -------------- None Challenges ------------ None Game ------ Seed BarrageDeepNanosword Manual? 0 Play Time 00:12:35 Cumulative 4.5 hours Start 2020.06.09 @ 12:51:43 End 2020.06.09 @ 13:02:51 Sessions 1 Manual Loads 0 Difficulty Rogue Special Mode None Game No. 11 Rogue 7 Adventurer 3 Explorer 1 Win Type - Total 0 Types 0/0/0/0/0/0/0 Lore% 7 Gallery% 11 Achievement% 10 Wizard Run 0 Options --------- ASCII 0 Keyboard 0 Movement Mouse Keybinds 0 Fullscreen 2 Font 18/SmallcapsGlow Map View 76x50 Tactical HUD 0 Map Filters NONE Filters NONE Steam 1 RUN: 08b3729f-7d16-4f81-be94-929129390f8a